Cogmind - Beta 13 @@@ ROGUE MODE // 2024.05.10 @ 12:47:20 Player: TinyBoulder Result: Destroyed by B-75 Beast with Magnetic Acceleration Cannon Performance ------------- Evolutions (3) 1500 Regions Visited (12) 2400 Robots Destroyed (108) 540 Value Destroyed (3873) 3873 Prototype IDs (5) 100 Alien Tech Used (0) 0 Bonus (354) 354 TOTAL SCORE: 8767 Bonus ------- High Alert Combat Kills 54 Met Imprinter 300 Cogmind --------- Core Integrity 0/700 Matter 104/300 Energy 100/100 System Corruption 0% Temperature Cool (21) Movement Core (1350) Ox26 Location -6/Proximity Caves Parts ------- > --- POWER (1) -------- (None) > --- PROPULSION (3) --- (None) > --- UTILITY (5) ------ Huge Storage Unit Sensor Array Advanced Targeting Computer > --- WEAPON (4) ------- (None) > --- INVENTORY (25) --- Nuclear Core Huge Storage Unit High-capacity Battery (250) High-capacity Matter Pod (90) High-capacity Matter Pod (0) Hardened Medium Armor Plating Makeshift Hacking Suite Long-range Tractor Beam Hacking Drone Bay Spread Laser Grenade Launcher Plasma Cutter Peak State ------------ > --- POWER ------------ Nuclear Core > --- PROPULSION ------- Light Treads Light Treads Medium Treads > --- UTILITY ---------- Improved Heat Sink Huge Storage Unit Phase Shifter Hardened Medium Armor Plating Improved Medium Armor Plating > --- WEAPON ----------- Heavy Assault Rifle Gauss Rifle Improved Light Cannon Advanced Assault Cannon > --- INVENTORY -------- Cooled Ion Engine Nuclear Core Light Treads Light Treads Huge Storage Unit High-capacity Battery High-capacity Battery High-capacity Matter Pod High-capacity Matter Pod High-capacity Matter Pod Sensor Array Advanced Targeting Computer Recoil Stabilizer Light Armor Plating Light Armor Plating Hardened Medium Armor Plating Long-range Tractor Beam Spread Laser Spread Laser Beam Cannon Grenade Launcher Improved Grenade Launcher Missile Launcher Plasma Cutter [Rating: 41] Favorites ----------- Power Nuclear Core Engine Ion Engine Power Core Nuclear Core Propulsion Light Treads Treads Light Treads Utility Huge Storage Unit Device Improved Heat Sink Storage Huge Storage Unit Processor Advanced Targeting Computer Protection Hardened Medium Armor Plating Weapon Improved Light Cannon Energy Gun Spread Laser Energy Cannon Beam Cannon Ballistic Gun Heavy Assault Rifle Ballistic Cannon Improved Light Cannon Launcher Grenade Launcher Slashing Weapon Blade Saw Build | -11 -10 -10 -10 -9 -8 -7 -7 -7 -7 -7 -7 -6 ------- Run | Yrd Mat Min Exi Min Mat Fac Was Fac Low Low Zio Pro Slots Evolved 6 | . . . . . 4 2 . . . . . . Power . | . . . . . . . . . . . . . Propulsion 1 | . . . . . . 1 . . . . . . Utility 3 | . . . . . 2 1 . . . . . . Weapon 2 | . . . . . 2 . . . . . . . Parts Attached 102 | 6 11 2 . 1 33 15 9 3 3 . 4 15 Power 7 | 1 3 . . . 2 . . . . . . 1 Engine 5 | 1 2 . . . 1 . . . . . . 1 Core 2 | . 1 . . . 1 . . . . . . . Reactor . | . . . . . . . . . . . . . Propulsion 13 | 2 1 . . . 3 4 . 1 . . . 2 Treads 13 | 2 1 . . . 3 4 . 1 . . . 2 Leg . | . . . . . . . . . . . . . Wheel . | . . . . . . . . . . . . . Hover . | . . . . . . . . . . . . . Flight . | . . . . . . . . . . . . . Utility 31 | 1 3 1 . . 9 7 3 1 2 . . 4 Device 15 | . 2 1 . . 5 3 . 1 1 . . 2 Storage 2 | 1 1 . . . . . . . . . . . Processor 2 | . . . . . . 1 . . 1 . . . Hackware . | . . . . . . . . . . . . . Protection 12 | . . . . . 4 3 3 . . . . 2 Artifact . | . . . . . . . . . . . . . Weapon 51 | 2 4 1 . 1 19 4 6 1 1 . 4 8 Energy Gun 3 | 1 2 . . . . . . . . . . . Energy Cannon 2 | . 1 . . . 1 . . . . . . . Ballistic Gun 16 | 1 . . . . 5 3 2 . . . 2 3 Ballistic Cannon 17 | . 1 . . 1 9 . 1 1 . . 2 2 Launcher 12 | . . 1 . . 3 1 3 . 1 . . 3 Special Weapon . | . . . . . . . . . . . . . Impact Weapon . | . . . . . . . . . . . . . Slashing Weapon 1 | . . . . . 1 . . . . . . . Piercing Weapon . | . . . . . . . . . . . . . Special Melee Weapon . | . . . . . . . . . . . . . Unidentified Prototypes . | . . . . . . . . . . . . . Parts Lost 38 | . 2 . . . 5 5 3 . 3 . . 20 Power 4 | . 1 . . . 1 . . . . . . 2 Propulsion 8 | . 1 . . . . 2 . . . . . 5 Utility 11 | . . . . . 1 1 2 . 2 . . 5 Weapon 15 | . . . . . 3 2 1 . 1 . . 8 Highest Loss Streak 12 | . 2 . . . 1 3 2 . 3 . . 12 To Critical Strikes 1 | . . . . . . . . . . . . 1 Average Slot Usage (%) 94 | . 90 100 100 100 99 98 88 99 96 92 82 94 Engine 6 | . 11 14 14 14 7 . . . . . . . Core 3 | . 2 . . . 1 7 7 7 7 7 7 5 Treads 22 | . 19 28 28 28 17 22 23 22 23 23 23 20 Device 11 | . 13 14 14 14 18 12 15 15 10 . . 12 Storage 10 | . 14 14 14 14 9 7 7 7 7 7 7 7 Processor 1 | . . . . . . . . . 2 7 7 7 Protection 7 | . . . . . 7 15 8 15 15 15 15 7 Energy Gun 1 | . 11 . . . . . . . . . . . Energy Cannon 2 | . 9 9 . . 3 7 . . . . . . Ballistic Gun 4 | . 2 . . . 3 6 . 15 12 7 10 10 Ballistic Cannon 15 | . 4 14 14 14 28 15 3 14 15 15 10 13 Launcher 4 | . . 4 14 14 . . 21 . 1 7 . 5 Naked Turns . | . . . . . . . . . . . . . Heaviest Build 125 | 13 92 92 92 93 109 123 120 121 121 121 122 125 Greatest Support 68 | 40 40 40 40 40 42 68 68 68 68 68 68 68 Greatest Overweight (x) 32 | . 4 2 2 2 5 2 1 3 1 1 1 32 Average Overweight (x) 1 | . 2 2 2 2 2 1 1 1 1 1 1 1 Largest Inventory Capacity 25 | 8 25 25 25 25 25 25 25 25 25 25 25 25 Average Capacity 24 | 6 23 25 25 25 25 25 25 25 25 25 25 25 Most Carried 25 | 1 16 16 19 21 25 25 25 23 24 23 25 24 Average Carried 20 | . 9 16 17 20 23 23 24 23 22 21 24 20 Final Capacity 25 | 8 25 25 25 25 25 25 25 25 25 25 25 25 Final Carried 25 | 1 16 16 19 21 25 25 23 23 22 24 24 12 Class Distribution -------------------- 46% | Tank 44% | Mutant 4% | Gunner Dominant Class ---------------- Mutant | -10/Materials Mutant | -10/Mines Mutant | -10/Exiles Mutant | -9/Mines Tank | -8/Materials Tank | -7/Factory Tank | -7/Waste Tank | -7/Factory Tank | -7/Lower Caves Tank | -7/Lower Caves Tank | -7/Zion Gunner | -6/Proximity Caves Resources | -11 -10 -10 -10 -9 -8 -7 -7 -7 -7 -7 -7 -6 ----------- Run | Yrd Mat Min Exi Min Mat Fac Was Fac Low Low Zio Pro Matter Collected 4249 | 260 430 10 80 20 1360 579 651 137 101 . 350 271 Remotely 1648 | . . . . . 1246 265 . 137 . . . . Salvage Created 3865 | . 543 . . 125 1060 489 1179 134 58 . . 277 Parts 143 | . 27 . . 7 60 21 . 4 7 . . 17 Haulers Intercepted 1 | . 1 . . . . . . . . . . . Recyclers Shooed 5 | . 2 . . . 3 . . . . . . . Parts Field Recycled . | . . . . . . . . . . . . . Retrieved Matter . | . . . . . . . . . . . . . Parts Self-Destructed 25 | . . . . . . . . . 7 4 4 10 Prevented . | . . . . . . . . . . . . . Kills | -11 -10 -10 -10 -9 -8 -7 -7 -7 -7 -7 -7 -6 ------- Run | Yrd Mat Min Exi Min Mat Fac Was Fac Low Low Zio Pro Combat Hostiles Destroyed 96 | . 13 1 . 3 37 13 6 1 5 . . 17 Guns 20 | . 11 . . . 3 1 . 1 1 . . 3 Cannons 37 | . 2 . . . 26 9 . . . . . . AOE 37 | . . 1 . 3 8 1 6 . 4 . . 14 Classes Destroyed 16 | . 5 1 . 1 6 1 1 . 1 . . . Worker 3 | . . . . . 2 1 . . . . . . Builder 2 | . . . . . 2 . . . . . . . Hauler 1 | . 1 . . . . . . . . . . . Recycler 2 | . 1 . . . . . . 1 . . . . Mechanic 1 | . . . . . 1 . . . . . . . Watcher 4 | . 3 . . . 1 . . . . . . . Swarmer 25 | . 3 . . . 9 . . . 4 . . 9 Grunt 46 | . 10 . . 2 19 8 . 1 . . . 6 Brawler 1 | . . . . 1 . . . . . . . . Duelist 1 | . . . . . 1 . . . . . . . Sentry 10 | . . . . . 7 2 . . . . . 1 Hunter 4 | . . . . . 1 2 . . . . . 1 Programmer 1 | . . . . . . 1 . . . . . . Behemoth 1 | . . . . . . . . . 1 . . . Compactor 6 | . . . . . . . 6 . . . . . Assembled 1 | . . 1 . . . . . . . . . . Best Kill Streak 11 | . 4 1 . 3 5 3 3 1 4 . . 11 Combat Bots Only 11 | . 4 1 . 3 4 3 3 1 4 . . 11 Max Kills in Single Turn 4 | . 1 1 . 3 3 2 2 1 2 . . 4 Gunslinging . | . . . . . . . . . . . . . Exploded 4 | . . 1 . 3 2 1 2 . 2 . . 4 Melee . | . . . . . . . . . . . . . Uniques/NPCs Destroyed . | . . . . . . . . . . . . . Combat | -11 -10 -10 -10 -9 -8 -7 -7 -7 -7 -7 -7 -6 -------- Run | Yrd Mat Min Exi Min Mat Fac Was Fac Low Low Zio Pro Hostile Shots Fired 573 | . 74 2 . . 167 115 . . 33 . . 182 Missed 167 | . 20 . . . 49 28 . . 11 . . 59 Damage Taken 7250 | . 617 26 . . 1733 1331 368 24 562 . . 2589 Core 1037 | . 63 11 . . 249 76 37 . 71 . . 530 Absorbed by Shields . | . . . . . . . . . . . . . Ignored by Resistances 12 | . . . . . . 12 . . . . . . Regen/Repaired (Parts) 273 | . . . . . 273 . . . . . . . Core Remaining (%) 74 | 100 . . . 70 54 . . . . . . . Volleys Fired 235 | . 47 2 . 1 73 58 19 2 11 . . 22 Largest 4 | . 2 1 . 1 4 4 4 4 4 . . 4 Hottest 178 | . 130 30 . 30 178 178 146 138 138 . . 160 Shots Fired 648 | . 92 2 . 1 264 139 45 7 35 . . 63 Gun 161 | . 73 . . . 22 18 . 4 17 . . 27 Cannon 415 | . 19 . . . 237 118 1 3 16 . . 21 Launcher 72 | . . 2 . 1 5 3 44 . 2 . . 15 Special . | . . . . . . . . . . . . . Kinetic 471 | . 28 . . . 245 109 1 7 33 . . 48 Thermal 105 | . 64 . . . 14 27 . . . . . . Explosive 72 | . . 2 . 1 5 3 44 . 2 . . 15 Electromagnetic . | . . . . . . . . . . . . . Robot Hit Streak 31 | . 9 . . . 9 7 25 30 31 . . 6 Robot Miss Streak 7 | . 4 . . . 6 4 1 . 3 . . 7 Penetration Max 1 | . . . . . . 1 . . . . . . Secondary Targets 1 | . 1 . . . . . . . . . . . Max Gunslinging Chain 1 | . 1 . . . . . . . . . . . Shots Hit Robots 350 | . 66 . . . 136 58 35 5 24 . . 26 Core Hits 232 | . 48 2 . 4 73 27 19 3 11 . . 45 Critical Kills 2 | . . . . . . 2 . . . . . . Critical Parts Destroyed 1 | . 1 . . . . . . . . . . . Critical Strikes 17 | . 3 . . . 7 6 . 1 . . . . Burn 2 | . 2 . . . . . . . . . . . Meltdown 2 | . . . . . . 2 . . . . . . Destroy 1 | . 1 . . . . . . . . . . . Blast 12 | . . . . . 7 4 . 1 . . . . Melee Attacks . | . . . . . . . . . . . . . Impact . | . . . . . . . . . . . . . Slashing . | . . . . . . . . . . . . . Piercing . | . . . . . . . . . . . . . Sneak Attacks . | . . . . . . . . . . . . . Combat Hostiles . | . . . . . . . . . . . . . Follow-up Attacks . | . . . . . . . . . . . . . Damage Inflicted 13596 | . 885 55 . 99 3485 1373 4321 92 818 . . 2468 Guns 1739 | . 692 . . . 234 193 . 73 204 . . 343 Cannons 4542 | . 193 . . . 2746 1054 27 19 300 . . 203 Explosions 7315 | . . 55 . 99 505 126 4294 . 314 . . 1922 Melee . | . . . . . . . . . . . . . Ramming . | . . . . . . . . . . . . . Kinetic 5113 | . 176 . . . 2851 917 27 92 504 . . 546 Thermal 1168 | . 709 . . . 129 330 . . . . . . Explosive 7315 | . . 55 . 99 505 126 4294 . 314 . . 1922 Electromagnetic . | . . . . . . . . . . . . . Impact . | . . . . . . . . . . . . . Slashing . | . . . . . . . . . . . . . Piercing . | . . . . . . . . . . . . . Highest Corruption 25 | . . . . . 1 1 25 25 25 25 25 . Average Corruption 9 | . . . . . 1 1 13 25 25 25 25 . Corruption Purged . | . . . . . . . . . . . . . Corruption Blocked . | . . . . . . . . . . . . . Effects 112 | . . . . . 18 4 13 21 29 20 7 . Message Errors 24 | . . . . . 6 2 2 3 5 5 1 . Matter Fused 24 | . . . . . 4 . 2 3 5 6 4 . Heat Flow Errors 18 | . . . . . 2 . 4 4 7 1 . . Energy Discharges 13 | . . . . . 2 1 1 3 5 1 . . Parts Rejected 1 | . . . . . . . . 1 . . . . Parts Fused 2 | . . . . . 1 . . . . 1 . . Data Loss (minor) 12 | . . . . . . . 1 3 2 5 1 . Data Loss (major) 2 | . . . . . 1 . . . . 1 . . Misfires 3 | . . . . . 1 1 . . 1 . . . Alerts 4 | . . . . . 1 . . 1 1 . 1 . Misdirections 2 | . . . . . . . . 2 . . . . Weapon Failures 7 | . . . . . . . 3 1 3 . . . Overload Shots . | . . . . . . . . . . . . . Overflow Damage 202 | . . . . . 34 5 11 . 31 . . 121 Projectiles 4 | . . . . . 4 . . . . . . . Explosions 198 | . . . . . 30 5 11 . 31 . . 121 Melee . | . . . . . . . . . . . . . Knockbacks 40 | . . . . . 33 6 . . . . . 1 Impact . | . . . . . . . . . . . . . Kinetic 38 | . . . . . 31 6 . . . . . 1 Secondary 2 | . . . . . 2 . . . . . . . Self-Inflicted Damage 627 | . . . . . . 206 373 . . . . 48 Shots 18 | . . . . . . 3 13 . . . . 2 Rammed . | . . . . . . . . . . . . . Targets Rammed . | . . . . . . . . . . . . . Kicked . | . . . . . . . . . . . . . Crushed . | . . . . . . . . . . . . . Highest Temperature 568 | . 299 . . . 385 568 263 226 395 236 . 342 Average Temperature 126 | . 102 . . . 80 169 93 76 149 123 . 140 Received Heat Transfer 2237 | . 315 . . . 864 369 . . 60 . . 629 Effects 20 | . 1 . . . 4 9 . . 5 . . 1 Shutdowns 4 | . . . . . . 3 . . 1 . . . Energy Bleed 4 | . 1 . . . . 2 . . 1 . . . Interference 9 | . . . . . 4 2 . . 3 . . . Matter Decay 1 | . . . . . . 1 . . . . . . Damage (minor) 2 | . . . . . . 1 . . . . . 1 Siege Activations . | . . . . . . . . . . . . . Robots Corrupted . | . . . . . . . . . . . . . Combat Hostiles . | . . . . . . . . . . . . . Parts Fried . | . . . . . . . . . . . . . Impact Corruptions . | . . . . . . . . . . . . . Robots Melted 2 | . . . . . . 2 . . . . . . Combat Hostiles 2 | . . . . . . 2 . . . . . . Parts Melted 9 | . 1 . . . . 8 . . . . . . Heat Transferred 2426 | . 1501 . . . 259 666 . . . . . . Parts Sabotaged . | . . . . . . . . . . . . . Parts Stolen . | . . . . . . . . . . . . . Parts Stripped . | . . . . . . . . . . . . . Power Chain Reactions . | . . . . . . . . . . . . . Alert | -11 -10 -10 -10 -9 -8 -7 -7 -7 -7 -7 -7 -6 ------- Run | Yrd Mat Min Exi Min Mat Fac Was Fac Low Low Zio Pro Peak Influence 521 | . 153 3 . 95 521 265 98 95 . . . . Initial 135 | . . . . . . 135 47 54 . . . . Average 106 | . 30 . . 1 245 122 76 71 . . . . Maximum Alert Level 2 | . . . . . 2 1 . . . . . . Low Security (%) 79 | 100 100 100 . 100 42 81 100 100 . . . . Level 1 14 | . . . . . 38 18 . . . . . . Level 2 6 | . . . . . 18 . . . . . . . Level 3 . | . . . . . . . . . . . . . Level 4 . | . . . . . . . . . . . . . Level 5 . | . . . . . . . . . . . . . High Security . | . . . . . . . . . . . . . Max Security . | . . . . . . . . . . . . . Squads Dispatched 16 | . 4 . . . 7 4 . 1 . . . . Investigation 8 | . 3 . . . 2 2 . 1 . . . . Extermination 1 | . . . . . . 1 . . . . . . Reinforcement 7 | . 1 . . . 5 1 . . . . . . Assault . | . . . . . . . . . . . . . Garrison . | . . . . . . . . . . . . . Intercept . | . . . . . . . . . . . . . Searches Triggered . | . . . . . . . . . . . . . Construction Impeded 2 | . . . . . 2 . . . . . . . Haulers Reinforced . | . . . . . . . . . . . . . Active Scanning Responses . | . . . . . . . . . . . . . Cargo Convoy Interrupts . | . . . . . . . . . . . . . Stealth | -11 -10 -10 -10 -9 -8 -7 -7 -7 -7 -7 -7 -6 --------- Run | Yrd Mat Min Exi Min Mat Fac Was Fac Low Low Zio Pro Distress Signals 9 | . . . . . 5 1 . 1 . . . 2 Communications Jammed . | . . . . . . . . . . . . . Distress Signals . | . . . . . . . . . . . . . Times Spotted 146 | . 24 1 . 2 58 16 6 4 5 . . 30 Peak Tracking Total 12 | . 7 1 . 3 4 4 3 2 4 . . 12 Tactical Retreats 6 | . 2 . . . 2 1 . . . . . 1 Traps | -11 -10 -10 -10 -9 -8 -7 -7 -7 -7 -7 -7 -6 ------- Run | Yrd Mat Min Exi Min Mat Fac Was Fac Low Low Zio Pro Traps Triggered 2 | . . . . . . 1 . 1 . . . . Indirectly . | . . . . . . . . . . . . . Trap Hack Attempts . | . . . . . . . . . . . . . Triggered . | . . . . . . . . . . . . . Disarmed . | . . . . . . . . . . . . . Reprogrammed . | . . . . . . . . . . . . . Reused . | . . . . . . . . . . . . . Traps Extracted . | . . . . . . . . . . . . . Installed . | . . . . . . . . . . . . . Triggered 1 | . . . . . . . . . . . . 1 Machines | -11 -10 -10 -10 -9 -8 -7 -7 -7 -7 -7 -7 -6 ---------- Run | Yrd Mat Min Exi Min Mat Fac Was Fac Low Low Zio Pro Machines Disabled 11 | . . . . . 2 4 . . . . . 5 Max in Single Turn 4 | . . . . . 1 4 . . . . . 2 Machines Repaired . | . . . . . . . . . . . . . Machines Dismantled . | . . . . . . . . . . . . . Machines Sabotaged . | . . . . . . . . . . . . . Overloaded Fab Kills . | . . . . . . . . . . . . . Hacking | -11 -10 -10 -10 -9 -8 -7 -7 -7 -7 -7 -7 -6 --------- Run | Yrd Mat Min Exi Min Mat Fac Was Fac Low Low Zio Pro Machines Accessed 24 | . 7 . 1 . 12 3 . 1 . . . . Terminals 18 | . 6 . . . 8 3 . 1 . . . . Fabricators . | . . . . . . . . . . . . . Repair Stations 2 | . . . . . 2 . . . . . . . Recycling Units 2 | . 1 . . . 1 . . . . . . . Scanalyzers 1 | . . . . . 1 . . . . . . . Garrison Access . | . . . . . . . . . . . . . Total Hacks 75 | . 25 . 1 . 36 11 . 2 . . . . Successful 39 | . 16 . 1 . 19 3 . . . . . . Failed 36 | . 9 . . . 17 8 . 2 . . . . Catastrophic 5 | . 2 . . . . 2 . 1 . . . . Database Lockouts . | . . . . . . . . . . . . . Manual 32 | . 12 . . . 13 5 . 2 . . . . Terminals 61 | . 24 . . . 24 11 . 2 . . . . Fabricators . | . . . . . . . . . . . . . Repair Stations 8 | . . . . . 8 . . . . . . . Recycling Units 2 | . 1 . . . 1 . . . . . . . Scanalyzers 3 | . . . . . 3 . . . . . . . Garrison Access . | . . . . . . . . . . . . . Terminal Hacks 20 | . 12 . 1 . 6 1 . . . . . . Record 1 | . . . 1 . . . . . . . . . Robot Analysis 2 | . 1 . . . 1 . . . . . . . Prototype ID Bank 3 | . 3 . . . . . . . . . . . Branch Access Points 1 | . . . . . 1 . . . . . . . Alert Level 1 | . 1 . . . . . . . . . . . Unreport Threat 6 | . 3 . . . 2 1 . . . . . . Locate Traps 3 | . 1 . . . 2 . . . . . . . Recall Reinforcements 1 | . 1 . . . . . . . . . . . Zone Layout 2 | . 2 . . . . . . . . . . . Fabricator Hacks . | . . . . . . . . . . . . . Repair Station Hacks 6 | . . . . . 6 . . . . . . . Scan Component 3 | . . . . . 3 . . . . . . . Repair 3 | . . . . . 3 . . . . . . . Recycling Unit Hacks 1 | . 1 . . . . . . . . . . . Retrieve Components 1 | . 1 . . . . . . . . . . . Scanalyzer 3 | . . . . . 3 . . . . . . . Insert Component 2 | . . . . . 2 . . . . . . . Analyze 1 | . . . . . 1 . . . . . . . Garrison Access Hacks . | . . . . . . . . . . . . . Unauthorized Hacks 9 | . 3 . . . 4 2 . . . . . . Terminals 9 | . 3 . . . 4 2 . . . . . . Botnet 9 | . 3 . . . 4 2 . . . . . . Fabricators . | . . . . . . . . . . . . . Repair Stations . | . . . . . . . . . . . . . Recycling Units . | . . . . . . . . . . . . . Scanalyzers . | . . . . . . . . . . . . . Garrison Access . | . . . . . . . . . . . . . Data Cores Recovered . | . . . . . . . . . . . . . Used . | . . . . . . . . . . . . . Hacking Detections 22 | . 6 . . . 12 3 . 1 . . . . Full Trace Events 8 | . 3 . . . 2 2 . 1 . . . . Feedback Events 1 | . . . . . 1 . . . . . . . Corruption 1 | . . . . . 1 . . . . . . . Feedback Blocked . | . . . . . . . . . . . . . Robot Schematics Acquired . | . . . . . . . . . . . . . Robots Built . | . . . . . . . . . . . . . Authchips . | . . . . . . . . . . . . . Time . | . . . . . . . . . . . . . Total Robot Build Rating . | . . . . . . . . . . . . . Part Schematics Acquired 1 | . . . . . 1 . . . . . . . Parts Built . | . . . . . . . . . . . . . Authchips . | . . . . . . . . . . . . . Time . | . . . . . . . . . . . . . Total Part Build Rating . | . . . . . . . . . . . . . Parts Repaired 3 | . . . . . 3 . . . . . . . Time 84 | . . . . . 84 . . . . . . . Parts Recycled . | . . . . . . . . . . . . . Recycled Matter . | . . . . . . . . . . . . . Retrieved Matter . | . . . . . . . . . . . . . Retrieved Components 10 | . 10 . . . . . . . . . . . Parts Scanalyzed 1 | . . . . . 1 . . . . . . . Part Schematics Acquired 1 | . . . . . 1 . . . . . . . Parts Damaged . | . . . . . . . . . . . . . Bothacking | -11 -10 -10 -10 -9 -8 -7 -7 -7 -7 -7 -7 -6 ------------ Run | Yrd Mat Min Exi Min Mat Fac Was Fac Low Low Zio Pro Used RIF Installer . | . . . . . . . . . . . . . Robots Hacked . | . . . . . . . . . . . . . Non-combat . | . . . . . . . . . . . . . Combat . | . . . . . . . . . . . . . Robot Hacks Applied . | . . . . . . . . . . . . . Relay Couplers Released . | . . . . . . . . . . . . . Fabnet Peak Effective % . | . . . . . . . . . . . . . Robots Rewired . | . . . . . . . . . . . . . Allies Hacked . | . . . . . . . . . . . . . Hacks Repelled . | . . . . . . . . . . . . . Allies | -11 -10 -10 -10 -9 -8 -7 -7 -7 -7 -7 -7 -6 -------- Run | Yrd Mat Min Exi Min Mat Fac Was Fac Low Low Zio Pro Total Allies . | . . . . . . . . . . . . . Largest Group . | . . . . . . . . . . . . . Highest-Rated Group . | . . . . . . . . . . . . . Highest-Rated Ally . | . . . . . . . . . . . . . Total Orders . | . . . . . . . . . . . . . Ally Attacks . | . . . . . . . . . . . . . Total Damage . | . . . . . . . . . . . . . Kills . | . . . . . . . . . . . . . Allies Corrupted . | . . . . . . . . . . . . . Allies Melted . | . . . . . . . . . . . . . Intel | -11 -10 -10 -10 -9 -8 -7 -7 -7 -7 -7 -7 -6 ------- Run | Yrd Mat Min Exi Min Mat Fac Was Fac Low Low Zio Pro Robot Analysis Total 2 | . 1 . . . 1 . . . . . . . Derelict Logs Recovered 6 | . . . . 1 . . . . 1 1 3 . Drone Launches . | . . . . . . . . . . . . . Drone Recoveries . | . . . . . . . . . . . . . Exploration | -11 -10 -10 -10 -9 -8 -7 -7 -7 -7 -7 -7 -6 ------------- Run | Yrd Mat Min Exi Min Mat Fac Was Fac Low Low Zio Pro Turns Passed 15480 | 82 2400 499 1210 1995 3283 998 243 375 527 392 2567 909 Spaces Moved 4810 | 47 585 151 364 614 876 294 72 146 204 163 1064 230 Core 3 | 2 . . . . . . . . . . . 1 Treads 4807 | 45 585 151 364 614 876 294 72 146 204 163 1064 229 Legs . | . . . . . . . . . . . . . Wheels . | . . . . . . . . . . . . . Hover . | . . . . . . . . . . . . . Flight . | . . . . . . . . . . . . . Fastest Speed 50 | 50 160 320 320 320 317 238 240 240 240 240 240 240 Average Speed 291 | 155 376 320 320 320 321 260 240 242 240 240 240 264 Slowest Speed 1650 | 160 480 320 320 320 570 320 240 400 240 240 240 1650 Overloaded Moves . | . . . . . . . . . . . . . Propulsion Burnouts . | . . . . . . . . . . . . . Robots Hopped . | . . . . . . . . . . . . . Cave-ins Triggered . | . . . . . . . . . . . . . Exploration Rate (%) 49 | 4 87 30 75 80 78 12 67 6 43 34 84 47 Regions Visited 12 Branch Regions 7 Pre-discovered Areas 4 | . . . 1 1 . . . . . . 2 . Known Exits Taken 1 | . . . . . 1 . . . . . . . Unknown Exits Taken 9 | 1 1 1 1 1 . . . 1 1 1 1 . Scrap Searched 6 | . . 1 . 2 . . . . 1 . 2 . Spaces Dug 49 | . . . . . 7 34 . . 5 . . 3 Terrain Destroyed 341 | . . 3 . 10 45 98 117 . 10 . . 58 Melee . | . . . . . . . . . . . . . Projectile 20 | . . . . . 10 4 . . . . . 6 AOE 321 | . . 3 . 10 35 94 117 . 10 . . 52 Terrain Rammed . | . . . . . . . . . . . . . Walls Destroyed . | . . . . . . . . . . . . . Machines Disabled . | . . . . . . . . . . . . . Actions | -11 -10 -10 -10 -9 -8 -7 -7 -7 -7 -7 -7 -6 --------- Run | Yrd Mat Min Exi Min Mat Fac Was Fac Low Low Zio Pro Total 5783 | 53 696 166 411 644 1170 429 99 162 218 168 1079 488 Wait 548 | . 27 12 43 27 153 51 . 12 . . 3 220 Move 4799 | 46 584 150 363 613 875 294 71 145 203 162 1063 230 Hop . | . . . . . . . . . . . . . Pick Up 53 | 1 19 . 4 2 16 6 . . . . 5 . Fast Attach 37 | 6 5 . . . 16 4 . 2 1 . 3 . Attach 32 | . 2 . . . 7 7 2 . 2 . 1 11 Detach 12 | . 1 . . . 4 2 . . 1 4 . . Swap 33 | . 4 2 . 1 10 4 7 1 . . . 4 Drop 34 | . 7 . 1 . 16 3 . . . 2 4 1 Fire 235 | . 47 2 . 1 73 58 19 2 11 . . 22 Melee . | . . . . . . . . . . . . . Ram . | . . . . . . . . . . . . . Kick . | . . . . . . . . . . . . . Crush . | . . . . . . . . . . . . . Escape Stasis . | . . . . . . . . . . . . . Rewire . | . . . . . . . . . . . . . Trap . | . . . . . . . . . . . . . Miscellaneous . | . . . . . . . . . . . . . Route ------- -11/Scrapyard -10/Materials (discovered 5 exits: [*Mat x3] / [*Min x2]) -10/Mines -10/Exiles (discovered 2 exits: [*Min x2]) -9/Mines (discovered 2 exits: *Mat x2) -8/Materials -7/Factory -7/Waste -7/Factory -7/Lower Caves -7/Lower Caves -7/Zion (discovered 2 exits: Dee / [*Pro]) -6/Proximity Caves History --------- Turn | Location | Event 7 | -11/Scrapyard | Discovered new exit (range 15) 83 | -11/Scrapyard | Entered Materials 182 | -10/Materials | Discovered new exit (range 8) 313 | -10/Materials | Build established: Mutant 388 | -10/Materials | Discovered new exit (range 5) 661 | -10/Materials | Discovered new exit (range 9) 869 | -10/Materials | Discovered new exit (range 9) 1729 | -10/Materials | Discovered new exit (range 14) 2483 | -10/Materials | Entered Mines 2539 | -10/Mines | Deemed a non-threat by the Exiles lab entrance 2539 | -10/Mines | Discovered new exit (range 5) 2774 | -10/Mines | Assembled infested the area 2982 | -10/Mines | Entered Exiles 3062 | -10/Exiles | Met 8R-AWN 3085 | -10/Exiles | Discovered new exit (range 14) 3277 | -10/Exiles | Met EX-HEX 3445 | -10/Exiles | Met EX-BIN 3589 | -10/Exiles | Met EX-DEC 3825 | -10/Exiles | Visited The Gauntlet 4038 | -10/Exiles | Learned location of Zion (-7) 4166 | -10/Exiles | Discovered new exit (range 10) 4192 | -10/Exiles | Entered Mines 4217 | -9/Mines | Met a Derelict bent on vengeance 4605 | -9/Mines | Discovered new exit (range 5) 4610 | -9/Mines | Learned location of Storage (-9) 5181 | -9/Mines | Learned location of 1 exit from Materials 5225 | -9/Mines | Discovered new exit (range 5) 5526 | -9/Mines | Found a hidden stash of uninstalled traps 6187 | -9/Mines | Entered Materials 6187 | -8/Materials | Evolved 4 slots: Utility x2, Weapon x2 6188 | -8/Materials | Identified exit to Factory 6682 | -8/Materials | Build established: Skirmisher 7088 | -8/Materials | Build established: Tank 8175 | -8/Materials | Repaired Imp. Light Cannon 8203 | -8/Materials | Repaired Lgt. Armor Plating 9186 | -8/Materials | Repaired Lgt. Armor Plating 9470 | -8/Materials | Entered Factory 9470 | -7/Factory | Evolved 2 slots: Propulsion x1, Utility x1 9712 | -7/Factory | Discovered new exit (range 15) 9776 | -7/Factory | Lost 3 parts (2n1u) 9866 | -7/Factory | Identified exit to Factory 10468 | -7/Factory | Sucked down chute 10468 | -7/Factory | Entered Waste 10483 | -7/Waste | EMP discharged 10486 | -7/Waste | Spotted C-40 Crusher 10496 | -7/Waste | Destroyed C-40 Crusher 10507 | -7/Waste | Spotted C-40 Crusher 10515 | -7/Waste | Destroyed C-40 Crusher 10519 | -7/Waste | Spotted C-40 Crusher 10534 | -7/Waste | Destroyed C-40 Crusher 10554 | -7/Waste | Spotted C-40 Crusher 10557 | -7/Waste | Spotted C-40 Crusher 10560 | -7/Waste | Spotted C-40 Crusher 10572 | -7/Waste | Destroyed C-40 Crusher 10579 | -7/Waste | Destroyed C-40 Crusher 10579 | -7/Waste | Destroyed C-40 Crusher 10583 | -7/Waste | EMP discharged 10583 | -7/Waste | System corruption reached 10% 10677 | -7/Waste | Discovered new exit (range 12) 10683 | -7/Waste | EMP discharged 10711 | -7/Waste | Entered Factory 11048 | -7/Factory | Discovered new exit (range 10) 11086 | -7/Factory | Entered Lower Caves 11087 | -7/Lower Caves | Encountered a Warlord checkpoint 11096 | -7/Lower Caves | Learned Factory stockpile data 11424 | -7/Lower Caves | Spotted B-75 Beast 11456 | -7/Lower Caves | Destroyed B-75 Beast 11485 | -7/Lower Caves | Lost 3 parts (2u1w) 11582 | -7/Lower Caves | Discovered new exit (range 9) 11613 | -7/Lower Caves | Entered another Lower Caves area 11942 | -7/Lower Caves | Discovered new exit (range 12) 11985 | -7/Lower Caves | Learned Factory trap positions 12005 | -7/Lower Caves | Entered Zion 12077 | -7/Zion | Given the Hacking Drone Bay 12077 | -7/Zion | Found Prototype Device 12100 | -7/Zion | Discovered new exit (range 11) 12158 | -7/Zion | System corruption cleaned by Quarantine Array 12292 | -7/Zion | Build established: Mutant 12761 | -7/Zion | Learned Factory emergency access door positions 12904 | -7/Zion | Given A8's code to call for help 13021 | -7/Zion | Learned location of Testing (-2) 13069 | -7/Zion | Build established: Tank 13069 | -7/Zion | Identified exit to Deep Caves 13074 | -7/Zion | Learned Factory emergency access door positions 13160 | -7/Zion | Learned Factory trap positions 13249 | -7/Zion | Learned location of Data Miner (-6) 14572 | -7/Zion | Entered Proximity Caves 14574 | -6/Proximity Caves | Spotter reported a threat 14575 | -6/Proximity Caves | Spotter reported a threat 14606 | -6/Proximity Caves | Spotted B-75 Beast 14628 | -6/Proximity Caves | Spotter reported a threat 14643 | -6/Proximity Caves | Spotter reported a threat 14688 | -6/Proximity Caves | Spotter reported a threat 14753 | -6/Proximity Caves | Spotter reported a threat 14781 | -6/Proximity Caves | Spotter reported a threat 14853 | -6/Proximity Caves | Spotter reported a threat 14882 | -6/Proximity Caves | Spotter reported a threat 15036 | -6/Proximity Caves | Build established: Gunner 15146 | -6/Proximity Caves | Received a Behemoth hack from an annoying Tinkerer 15321 | -6/Proximity Caves | Spotter reported a threat 15338 | -6/Proximity Caves | Attracted the attention of an 0b10 base 15354 | -6/Proximity Caves | Core integrity fell below 50% 15377 | -6/Proximity Caves | Destroyed 11 combat bots 15416 | -6/Proximity Caves | Spotter reported a threat 15425 | -6/Proximity Caves | Lost 12 parts (1p3n4u4w) 15479 | -6/Proximity Caves | Core integrity fell below 20% 15481 | -6/Proximity Caves | Destroyed by B-75 Beast with Magnetic Acceleration Cannon Last Messages --------------- 15416_ ALERT: Unidentified potential threat approaching Complex 0b10. 15417_ Acquired 5 matter. 15445_ Acquired 17 matter. 15459_ The unstable cave ceiling collapses. 15459_ Outpost Generator explodes. 15460_ Slug Cannon destroyed. 15460_ Critical hit (Burn: +37). 15460_ Slug penetrates Wall. 15463_ Lgt. Treads destroyed. 15465_ Slug penetrates Machine. 15465_ Machine disabled. 15466_ Acquired 3 matter. 15468_ Penetrated by Slug. 15473_ The unstable cave ceiling collapses. 15475_ Barrage Gun destroyed. 15478_ Cld. Ion Engine destroyed. 15478_ Critical hit (Burn: +37). 15478_ Outpost Terminal disabled. 15478_ Barrage Gun destroyed. 15481_ Penetrated by Slug. Map ----- +----------------------------------------------------+ | ?????????????????? | | ?????????????????? ### ## ### #### | | ??????????????????????????????## ## ##?# #??# | | ???????????????????????????????##### # #??# #??? | | ???????????????????????????????????# ## #??# #??? | | ???????????????????????????????????# ## #??# ??? | | ???????????????????????????????????# ## ?? ??? | | ???????????????????????????????????# ## ?? ??? | | ??????????????????????????????????? ## ?? %#?? | | ?????????????????????????????????? #? ? ?? | | ??????????????????????????????????# ## ? % ?? | | ??????????????????????????????????## # ? ?? | | ???????????????????????????????????# ##?#" ?? | | ???????????????????????????????????# ????# ?"? | | ???????????????????????????????????## ?????? ??? | | ????????????????????????????????????? ?????????? | | ???????????????????????????????????## ?????????? | | ?????????????????????????????????### #?????????? | | ?????????????????????????????##### #?????????? | | ???????????????????????????? #?????????? | | ???????????????????????????? ? #??????????? | | ????????????????????####?##;;### ###BB#??????????? | | ????????????????????#"""?# ;BB#?###??????? | | ????????????????????#"" # ; ### ##?????? | | ????????????????????#" #;; # ## ####### | | ????????????????????# %@ "# | | ????????????????????# % "; ######### | | ????????????????# ; % # % #"##????? | | ????????????????## ; ##???? | | ?????????????????# ; % ! #???? | | ?????????????????# ; ####???? | | ?????????????????# ; "" #????? | | ???????????????? ; "# ####????? | | ??????????????? # ;;;;;# "# #???????? | | ??????????????## ;[[[[;Y ""# ##???????? | | ???????????????### #[[[[# "# ###????????? | | ?????????????????# #######++####### #??????????? | | ?????????????????# ???????????????? #??????????? | | ?????????????????????????????????? #??????????? | | ??????????????????????????????????#####??????????? | | ?????????????????????????????????????????????????? | | ?????????????????????????????????????????????????? | | ?????????????????????????????????????????????????? | | ?????????????????????????????????????????????????? | | ?????????????????????????????????????????????????? | | ?????????????????????????????????????????????????? | | ?????????????????????????????????????????????????? | | ?????????????????????????????????????????????????? | | ?????????????????????????????????????????????????? | | ?????????????????????????????????????????????????? | +----------------------------------------------------+ Best States ------------- Heat Dissipation 48 Energy Generation 14 Energy Capacity 280 Matter Stores 300 Matter Capacity 300 Sight Range 16 Robot Scan Range 14 Terrain Scan Density 10 ECM Strength 1 Armor Coverage 600 Resistance: EM 15 Phase Shifting 5 Evasion (%) 45 Targeting Accuracy 8 Recoil Reduction 7 Item Schematics ----------------- Hcp. Matter Pod | -8/Materials | Scanalyzed Robot Schematics ------------------ None Fabricated ------------ Nothing Alien Tech Used ----------------- None Achievements -------------- Hey, That's Mine! Challenges ------------ None Game ------ Seed PlatingTerrainCanceller Manual? 0 Play Time 01:03:14 Cumulative 80.0 hours Start 2024.05.09 @ 19:39:18 End 2024.05.10 @ 12:47:20 Sessions 7 Manual Loads 0 Difficulty Rogue Special Mode None Game No. 75 Rogue 75 Adventurer 0 Explorer 0 Win Type - Total 3 Types 2/0/0/1/0/0/0/0/0 Lore% 58 Gallery% 63 Achievement% 51 Wizard Run 0 Options --------- Layout 0 ASCII 0 Keyboard 0 Movement Numpad Keybinds 0 Fullscreen 1 Font 18/Terminus Map View 76x50 Zoom Use 0% Tactical HUD 1 Map Filters NONE Filters NONE Steam 1 RUN: 22a1417c-fa2c-49ed-bd2d-21452e4b3148